Cogmind - Beta 13 @@@ ROGUE MODE // 2024.07.08 @ 21:36:30 Player: void Result: Self-destructed Performance ------------- Evolutions (1) 500 Regions Visited (2) 400 Robots Destroyed (17) 85 Value Destroyed (451) 451 Prototype IDs (2) 40 Alien Tech Used (0) 0 Bonus (0) 0 TOTAL SCORE: 1476 Bonus ------- None Cogmind --------- Core Integrity 323/400 Matter 300/300 Energy 28/100 System Corruption 0% Temperature Cool (6) Movement Rolling (90) Location -9/Materials Parts ------- > --- POWER (1) -------- (None) > --- PROPULSION (2) --- Armored Wheel Armored Wheel > --- UTILITY (4) ------ Heat Sink Medium Storage Unit Hardened Light Armor Plating > --- WEAPON (2) ------- Improved EM Shotgun Maul > --- INVENTORY (10) --- Aluminum Leg Aluminum Leg Improved EM Shotgun Small Laser Light Assault Rifle Plasma Cutter Peak State ------------ > --- POWER ------------ (None) > --- PROPULSION ------- Armored Wheel Improved Flight Unit > --- UTILITY ---------- Heat Sink Medium Storage Unit Hardened Light Armor Plating > --- WEAPON ----------- Improved EM Shotgun Maul > --- INVENTORY -------- Aluminum Leg Aluminum Leg Armored Wheel Improved EM Shotgun Small Laser Light Assault Rifle Plasma Cutter [Rating: 15] Favorites ----------- Power Ion Engine Engine Ion Engine Propulsion Improved Aluminum Leg Leg Improved Aluminum Leg Wheel Armored Wheel Flight Unit Improved Flight Unit Utility Small Storage Unit Device Seismic Detector Storage Small Storage Unit Protection Hardened Light Armor Plating Weapon Medium Laser Energy Gun Medium Laser Ballistic Gun Light Assault Rifle Impact Weapon Maul Build | -11 -10 -9 ------- Run | Yrd Mat Mat Slots Evolved 2 | . . 2 Power . | . . . Propulsion . | . . . Utility 2 | . . 2 Weapon . | . . . Parts Attached 34 | 7 14 13 Power 4 | 1 3 . Engine 4 | 1 3 . Core . | . . . Reactor . | . . . Propulsion 11 | 2 4 5 Treads . | . . . Leg 6 | 2 4 . Wheel 3 | . . 3 Hover . | . . . Flight 2 | . . 2 Utility 6 | 2 1 3 Device 3 | 1 . 2 Storage 2 | 1 1 . Processor . | . . . Hackware . | . . . Protection 1 | . . 1 Artifact . | . . . Weapon 13 | 2 6 5 Energy Gun 6 | 1 3 2 Energy Cannon . | . . . Ballistic Gun 4 | 1 2 1 Ballistic Cannon . | . . . Launcher . | . . . Special Weapon . | . . . Impact Weapon 3 | . 1 2 Slashing Weapon . | . . . Piercing Weapon . | . . . Special Melee Weapon . | . . . Unidentified Prototypes 2 | . . 2 Corrupted Parts 1 | . 1 . System Corruption 2 | . 2 . Parts Lost 6 | . 3 3 Power 2 | . 1 1 Propulsion 2 | . 2 . Utility 1 | . . 1 Weapon 1 | . . 1 Highest Loss Streak 3 | . 3 3 To Critical Strikes . | . . . Average Slot Usage (%) 90 | . 95 80 Engine 10 | . 13 5 Leg 19 | . 25 6 Wheel 4 | . . 15 Device 13 | . 12 16 Storage 13 | . 14 11 Protection 1 | . . 4 Energy Gun 15 | . 16 13 Ballistic Gun 7 | . 9 2 Impact Weapon 2 | . 1 5 Naked Turns . | . . . Heaviest Build 22 | 14 21 22 Greatest Support 26 | 20 26 24 Greatest Overweight (x) 5 | 3 5 1 Average Overweight (x) . | . . . Largest Inventory Capacity 10 | 8 10 10 Average Capacity 8 | 7 8 10 Most Carried 8 | 3 8 7 Average Carried 5 | 1 6 4 Final Capacity 10 | 8 10 10 Final Carried 6 | 3 6 6 Class Distribution -------------------- 100% | Mutant Dominant Class ---------------- Mutant | -10/Materials Mutant | -9/Materials Resources | -11 -10 -9 ----------- Run | Yrd Mat Mat Matter Collected 550 | 213 199 138 Remotely . | . . . Salvage Created 530 | 61 280 189 Parts 33 | 8 14 11 Haulers Intercepted . | . . . Recyclers Shooed . | . . . Parts Field Recycled . | . . . Retrieved Matter . | . . . Parts Self-Destructed . | . . . Prevented . | . . . Kills | -11 -10 -9 ------- Run | Yrd Mat Mat Combat Hostiles Destroyed 14 | . 9 5 Melee 5 | . 4 1 Guns 5 | . 3 2 Classes Destroyed 5 | 1 2 2 Tunneler 3 | 3 . . Swarmer 4 | . 3 1 Grunt 8 | . 6 2 Duelist 1 | . . 1 Sentry 1 | . . 1 Best Kill Streak 3 | 3 3 3 Combat Bots Only 3 | . 3 3 Max Kills in Single Turn 1 | 1 1 1 Gunslinging . | . . . Exploded . | . . . Melee 1 | . 1 1 Uniques/NPCs Destroyed . | . . . Combat | -11 -10 -9 -------- Run | Yrd Mat Mat Hostile Shots Fired 101 | . 51 50 Missed 18 | . 9 9 Damage Taken 1013 | . 499 514 Core 159 | . 82 77 Absorbed by Shields . | . . . Core Remaining (%) 83 | 100 67 . Volleys Fired 43 | 14 15 14 Largest 2 | 2 2 2 Hottest 90 | 70 90 90 Shots Fired 75 | 28 30 17 Gun 75 | 28 30 17 Cannon . | . . . Launcher . | . . . Special . | . . . Kinetic 22 | 14 6 2 Thermal 45 | 14 24 7 Explosive . | . . . Electromagnetic 8 | . . 8 Robot Hit Streak 11 | 7 11 10 Robot Miss Streak 4 | 4 2 2 Penetration Max . | . . . Secondary Targets . | . . . Shots Hit Robots 73 | 19 34 20 Core Hits 20 | 4 10 6 Critical Kills 1 | . 1 . Critical Parts Destroyed 8 | 1 4 3 Critical Strikes 9 | 1 5 3 Destroy 1 | 1 . . Smash 8 | . 5 3 Melee Attacks 25 | . 15 10 Impact 25 | . 15 10 Slashing . | . . . Piercing . | . . . Sneak Attacks . | . . . Combat Hostiles . | . . . Follow-up Attacks . | . . . Damage Inflicted 1355 | 204 712 439 Guns 666 | 204 289 173 Cannons . | . . . Explosions . | . . . Melee 689 | . 423 266 Ramming . | . . . Kinetic 175 | 77 78 20 Thermal 386 | 127 211 48 Explosive . | . . . Electromagnetic 105 | . . 105 Impact 689 | . 423 266 Slashing . | . . . Piercing . | . . . Highest Corruption 2 | . 2 . Average Corruption 2 | . 2 . Corruption Purged . | . . . Corruption Blocked . | . . . Effects 1 | . 1 . Message Errors 1 | . 1 . Overload Shots . | . . . Overflow Damage 357 | . 215 142 Projectiles . | . . . Explosions . | . . . Melee 357 | . 215 142 Knockbacks 6 | . 3 3 Impact 6 | . 3 3 Kinetic . | . . . Secondary . | . . . Self-Inflicted Damage . | . . . Shots . | . . . Rammed . | . . . Targets Rammed . | . . . Kicked . | . . . Crushed . | . . . Highest Temperature 354 | 102 354 27 Average Temperature 111 | 34 175 14 Received Heat Transfer 381 | . 252 129 Effects 4 | . 4 . Energy Bleed 2 | . 2 . Short Circuit 1 | . 1 . Damage (minor) 1 | . 1 . Siege Activations . | . . . Robots Corrupted . | . . . Combat Hostiles . | . . . Parts Fried 5 | . 2 3 Impact Corruptions 15 | . 11 4 Robots Melted . | . . . Combat Hostiles . | . . . Parts Melted 1 | . 1 . Heat Transferred 1088 | 370 594 124 Parts Sabotaged . | . . . Parts Stolen . | . . . Parts Stripped . | . . . Power Chain Reactions . | . . . Alert | -11 -10 -9 ------- Run | Yrd Mat Mat Peak Influence 191 | 15 155 191 Initial 65 | . 9 65 Average 48 | 5 37 94 Maximum Alert Level . | . . . Low Security (%) 100 | 100 100 100 Level 1 . | . . . Level 2 . | . . . Level 3 . | . . . Level 4 . | . . . Level 5 . | . . . High Security . | . . . Max Security . | . . . Squads Dispatched 2 | . 1 1 Investigation 1 | . 1 . Extermination . | . . . Reinforcement 1 | . . 1 Assault . | . . . Garrison . | . . . Intercept . | . . . Searches Triggered . | . . . Construction Impeded . | . . . Haulers Reinforced . | . . . Active Scanning Responses . | . . . Cargo Convoy Interrupts . | . . . Stealth | -11 -10 -9 --------- Run | Yrd Mat Mat Distress Signals 3 | . 3 . Communications Jammed . | . . . Distress Signals . | . . . Times Spotted 24 | . 13 11 Peak Tracking Total 6 | . 6 4 Tactical Retreats . | . . . Traps | -11 -10 -9 ------- Run | Yrd Mat Mat Traps Triggered 1 | . 1 . Indirectly . | . . . Trap Hack Attempts . | . . . Triggered . | . . . Disarmed . | . . . Reprogrammed . | . . . Reused . | . . . Traps Extracted . | . . . Installed . | . . . Triggered . | . . . Machines | -11 -10 -9 ---------- Run | Yrd Mat Mat Machines Disabled . | . . . Max in Single Turn . | . . . Machines Repaired . | . . . Machines Dismantled . | . . . Machines Sabotaged . | . . . Overloaded Fab Kills . | . . . Hacking | -11 -10 -9 --------- Run | Yrd Mat Mat Machines Accessed 4 | . 1 3 Terminals 4 | . 1 3 Fabricators . | . . . Repair Stations . | . . . Recycling Units . | . . . Scanalyzers . | . . . Garrison Access . | . . . Total Hacks 10 | . 2 8 Successful 1 | . . 1 Failed 9 | . 2 7 Catastrophic 3 | . . 3 Database Lockouts . | . . . Manual 9 | . 2 7 Terminals 10 | . 2 8 Fabricators . | . . . Repair Stations . | . . . Recycling Units . | . . . Scanalyzers . | . . . Garrison Access . | . . . Terminal Hacks 1 | . . 1 Zone Layout 1 | . . 1 Fabricator Hacks . | . . . Repair Station Hacks . | . . . Recycling Unit Hacks . | . . . Scanalyzer . | . . . Garrison Access Hacks . | . . . Unauthorized Hacks . | . . . Terminals . | . . . Fabricators . | . . . Repair Stations . | . . . Recycling Units . | . . . Scanalyzers . | . . . Garrison Access . | . . . Data Cores Recovered . | . . . Used . | . . . Hacking Detections 3 | . 1 2 Full Trace Events . | . . . Feedback Events . | . . . Feedback Blocked . | . . . Robot Schematics Acquired . | . . . Robots Built . | . . . Authchips . | . . . Time . | . . . Total Robot Build Rating . | . . . Part Schematics Acquired . | . . . Parts Built . | . . . Authchips . | . . . Time . | . . . Total Part Build Rating . | . . . Parts Repaired . | . . . Time . | . . . Parts Recycled . | . . . Recycled Matter . | . . . Retrieved Matter . | . . . Retrieved Components . | . . . Parts Scanalyzed . | . . . Part Schematics Acquired . | . . . Parts Damaged . | . . . Bothacking | -11 -10 -9 ------------ Run | Yrd Mat Mat Used RIF Installer . | . . . Robots Hacked . | . . . Non-combat . | . . . Combat . | . . . Robot Hacks Applied . | . . . Relay Couplers Released . | . . . Fabnet Peak Effective % . | . . . Robots Rewired . | . . . Allies Hacked . | . . . Hacks Repelled . | . . . Allies | -11 -10 -9 -------- Run | Yrd Mat Mat Total Allies . | . . . Largest Group . | . . . Highest-Rated Group . | . . . Highest-Rated Ally . | . . . Total Orders . | . . . Ally Attacks . | . . . Total Damage . | . . . Kills . | . . . Allies Corrupted . | . . . Allies Melted . | . . . Intel | -11 -10 -9 ------- Run | Yrd Mat Mat Robot Analysis Total . | . . . Derelict Logs Recovered . | . . . Drone Launches . | . . . Drone Recoveries . | . . . Exploration | -11 -10 -9 ------------- Run | Yrd Mat Mat Turns Passed 1030 | 119 646 265 Spaces Moved 523 | 54 307 162 Core 8 | 6 2 . Treads . | . . . Legs 415 | 48 305 62 Wheels 100 | . . 100 Hover . | . . . Flight . | . . . Fastest Speed 50 | 50 120 90 Average Speed 118 | 118 127 101 Slowest Speed 300 | 200 300 120 Overloaded Moves . | . . . Propulsion Burnouts . | . . . Robots Hopped . | . . . Cave-ins Triggered . | . . . Exploration Rate (%) 23 | 6 48 16 Regions Visited 2 Branch Regions . Pre-discovered Areas . | . . . Known Exits Taken . | . . . Unknown Exits Taken 2 | 1 1 . Scrap Searched . | . . . Spaces Dug 1 | . . 1 Terrain Destroyed 1 | . . 1 Melee 1 | . . 1 Projectile . | . . . AOE . | . . . Terrain Rammed . | . . . Walls Destroyed . | . . . Machines Disabled . | . . . Actions | -11 -10 -9 --------- Run | Yrd Mat Mat Total 803 | 80 499 224 Wait 156 | 3 138 15 Move 521 | 53 306 162 Hop . | . . . Pick Up 14 | 3 6 5 Fast Attach 17 | 7 6 4 Attach 8 | . 2 6 Detach 1 | . . 1 Swap 9 | . 6 3 Drop 9 | . 5 4 Fire 43 | 14 15 14 Melee 25 | . 15 10 Ram . | . . . Kick . | . . . Crush . | . . . Escape Stasis . | . . . Rewire . | . . . Trap . | . . . Miscellaneous . | . . . Route ------- -11/Scrapyard -10/Materials -9/Materials History --------- Turn | Location | Event 9 | -11/Scrapyard | Discovered new exit (range 16) 120 | -11/Scrapyard | Entered Materials 313 | -10/Materials | Build established: Mutant 663 | -10/Materials | Lost 3 parts (1p2n) 718 | -10/Materials | Discovered new exit (range 15) 766 | -10/Materials | Entered another Materials area 766 | -9/Materials | Evolved 2 slots: Utility x2 931 | -9/Materials | Lost 3 parts (1p1u1w) 1031 | -9/Materials | Self-destructed Last Messages --------------- Acquired 32 matter. Acquired 47 matter. O-16 Technician: "IFF HANDSHAKE FAILED. SECURING TERMINAL." ALERT: Hostiles spotted, dispatching reinforcements to Terminal M003. Acquired Prototype Energy Gun. Identified Imp. EM Shotgun. Acquired Imp. EM Shotgun. Acquired Prototype Flight Unit. Identified Imp. Flight Unit. Dropped Imp. Flight Unit. Acquired Imp. Flight Unit. Dropped Imp. Flight Unit. Critical hit (Burn: +37). Y-45 Defender destroyed. Door malfunctions. Acquired 59 matter. U-05 Engineer repairs door. C-30 ARC bursts open, deploying its payload. S-10 Pest unfolds itself. S-10 Pest destroyed. Map ----- +----------------------------------------------------+ | ??? "" ## + #???# """ ?????????? | | ??? """## # "" #???# ?????????? | | ??? S"## # T" #???# ?????????? | | ??? ## # "" #???#######+#?????????? | | ???######## #! ########## #?????????? | | ??????????# # # # #?????????? | | ??????????# + # """# #?????????? | | ??????????# #""" # """# #??#######? | | ??????????# #""" # ! """# #? ? | | ???######## #""" # + ## """ # | | ??? ## # # """# + """ # | | ??? ## ######### """# ## """ # | | ??? """ ## ## # ! """# #? ? | | ??? """ ## ## """ #*%= # #?? # | | ??? """ ## ## """ ######+### #?? # | | ??? ## ## """ #????# #?# #??? "T" # | | ??? ## ## #????# #?# #??? """ ? | | ??? ## ## #????# #?# g#####+####? | | ???????????????###+######## ### #??? | | ?????????????? #??? | | ??????????????? g #??? | | ?????????????#####/####### #??? | | ?????????????# "%??????# #??? | | ?????????????# """[?????# o #??? | | ?????????????+ """!###### #??? | | ?????????????# u"""s/%*[ @sr######### #??? | | ?????????????# %=######/######???# #??? | | ?????????????# !# #???#####??? | | ?????????????### ##?# = #??????????? | | ???????????????#????# [[= #??????????? | | ????????????????????# [== #??????????? | | ????????????????????# #??????????? | | ????????????????????# #??????????? | | ????????????????????#! #??????????? | | ????????????????????#############??????????? | | | | | | | | | | | | | | | | | | | | | | | | | | | | | | | +----------------------------------------------------+ Best States ------------- Heat Dissipation 38 Energy Generation 10 Energy Capacity 250 Matter Stores 300 Matter Capacity 300 Sight Range 16 Robot Scan Range 14 Terrain Scan Density 10 Armor Coverage 150 Evasion (%) 55 Item Schematics ----------------- None Robot Schematics ------------------ None Fabricated ------------ Nothing Alien Tech Used ----------------- None Achievements -------------- None Challenges ------------ None Game ------ Seed MultinovaMyomerPropulsion Manual? 0 Play Time 00:13:10 Cumulative 30.6 hours Start 2024.06.03 @ 19:55:11 End 2024.07.08 @ 21:36:30 Sessions 3 Manual Loads 0 Difficulty Rogue Special Mode None Game No. 63 Rogue 55 Adventurer 8 Explorer 0 Win Type - Total 0 Types 0/0/0/0/0/0/0/0/0 Lore% 11 Gallery% 29 Achievement% 23 Wizard Run 0 Options --------- Layout 1 ASCII 0 Keyboard 0 Movement Mouse Keybinds 0 Fullscreen 1 Font 24/Smallcaps Map View 50x35 Zoom Use 25% Tactical HUD 0 Map Filters NONE Filters NONE Steam 1 RUN: c9dcd9d8-7fda-4b90-b1c2-b24b101857f2